[Event "Saint Louis Super Swiss 2023"]
[Site "Saint Louis"]
[Date "2023.03.16"]
[Round "6.9"]
[White "Daggupati, Balaji"]
[Black "Grabinsky, Aaron"]
[Result "1/2-1/2"]
[ECO "C95"]
[WhiteElo "2513"]
[BlackElo "2405"]
[Annotator "TA"]
[PlyCount "78"]
[EventDate "2023.03.12"]
[EventType "swiss"]
[EventCountry "USA"]
[TimeControl "5400+30"]

{[%evp 21,78,18,28,23,44,0,29,0,46,33,60,50,53,65,72,54,46,46,46,57,38,41,64,60,62,46,68,45,70,59,49,0,0,0,0,0,0,0,0,-6,9,0,0,0,0,0,16,0,0,0,0,-33,-33,-33,-33,-94,-80,-634,-32]} 1. e4 {[%emt 0:00:03]} e5 {[%emt 0:00:16]} 2. Nf3 {[%emt 0:00:05]} Nc6 {[%emt 0:00:04]} 3. Bb5 {[%emt 0:00:07]} a6 {[%emt 0:00:05]} 4. Ba4 {[%emt 0:00:04]} Nf6 {[%emt 0:00:05]} 5. O-O {[%emt 0:00:06]} Be7 {[%emt 0:00:08]} 6. Re1 {[%emt 0:00:12]} b5 {[%emt 0:00:07]} 7. Bb3 {[%emt 0:00:05]} d6 {[%emt 0:00:26]} 8. c3 {[%emt 0:00:05]} O-O {[%emt 0:00:16]} 9. h3 {[%emt 0:00:04]} Nb8 {[%emt 0:00:27]} 10. d4 {[%emt 0:00:06]} Nbd7 {[%emt 0:00:05]} 11. c4 {[%emt 0:00:14]} c6 {[%emt 0:00:19]} 12. Qc2 {[%emt 0:00:30] C95: Closed Ruy Lopez: Breyer Variation with 10 d4.} Bb7 {[%emt 0:02:28]} 13. a3 {[%emt 0:02:18]} Re8 {[%emt 0:02:51]} 14. Nc3 {[%emt 0:05:00] White has an edge.} h6 {[%emt 0:01:55]} (14... exd4 $11 {was preferrable.} 15. Nxd4 bxc4 16. Bxc4 d5) 15. Be3 $14 {[%emt 0:06:23]} Qc7 {[%emt 0:03:32]} 16. Rac1 {[%emt 0:02:49] [#]} Rac8 $146 {[%emt 0:05:31]} ({Predecessor:} 16... Bf8 17. cxb5 cxb5 18. d5 Rec8 19. Qe2 Qd8 20. Nd2 Nc5 21. Bc2 g6 22. Bb1 Bg7 {1-0 Galiana Fernandez,A (2333)-Namitbir,S (2093) Sitges Sunway op 8th 2021 (6)}) 17. cxb5 {[%emt 0:02:35]} cxb5 {[%emt 0:00:29]} 18. Qb1 {[%emt 0:15:50]} (18. Qd2 $5 {[%cal Re3h6]}) 18... Qd8 {[%emt 0:06:09]} 19. dxe5 {[%emt 0:10:42]} Nxe5 {[%emt 0:02:06]} 20. Nxe5 {[%emt 0:00:38]} dxe5 {[%emt 0:00:06]} 21. Red1 {[%emt 0:01:03]} Qa5 {[%emt 0:03:24]} 22. Qa2 {[%emt 0:13:08]} Rf8 {[%emt 0:01:09]} 23. Be6 {[%emt 0:01:50]} Rcd8 {[%emt 0:09:20]} (23... fxe6 $2 24. Qxe6+ Rf7 25. Bb6 $18 (25. Qxe5 $2 Re8 $17)) 24. Nd5 {[%emt 0:02:34]} Nxd5 {[%emt 0:06:34]} 25. Bxd5 {[%emt 0:00:29]} Bxd5 {[%emt 0:00:37]} 26. Rxd5 {[%emt 0:00:47]} (26. exd5 $14 Rd7 27. Qb3) 26... Qa4 $1 $11 {[%emt 0:04:59]} 27. Rxd8 {[%emt 0:15:15]} ({Of course not} 27. Rxe5 Rd1+ 28. Kh2 (28. Rxd1 $2 Qxd1+ 29. Kh2 Bd6 $19) 28... Rxc1 29. Rxe7 Rh1+ 30. Kxh1 Qd1+ 31. Kh2 Qd6+ 32. Kh1 Qxe7 $19) 27... Rxd8 {[%emt 0:01:19]} 28. Rc7 {[%emt 0:00:04]} Qd1+ {[%emt 0:00:23]} 29. Kh2 {[%emt 0:00:05]} Rd7 {[%emt 0:02:42]} 30. Rc6 {[%emt 0:05:05]} Rd6 {[%emt 0:00:55]} (30... Bg5 {simplifies} 31. Bxg5 hxg5 32. b4 Qd3) 31. Rc8+ {[%emt 0:02:44]} Rd8 {[%emt 0:00:47]} 32. Rc7 {[%emt 0:01:56]} Rd7 {[%emt 0:00:09]} 33. Rc6 {[%emt 0:02:07]} Rd6 {[%emt 0:00:21]} 34. Rc5 {[%emt 0:00:57]} (34. Rc1 $5 {[%cal Rc1d1]} Qd3 35. Rc8+ (35. Rc7 Rd7 $11) 35... Rd8 36. Rc7 $11) 34... Rd7 {[%emt 0:02:52]} 35. Rc3 {[%emt 0:00:49]} Bg5 {[%emt 0:02:40]} 36. Rc8+ {[%emt 0:02:20]} Kh7 {[%emt 0:03:07] [#] aiming for ...Bf4+.} 37. Bxg5 {[%emt 0:00:49]} hxg5 {[%emt 0:00:11]} 38. Rf8 {[%emt 0:00:36]} ({White should try} 38. b4 $15) 38... Kg6 $17 {[%emt 0:01:41] Hoping for ...Qc2.} 39. Ra8 $2 {[%emt 0:01:14][%mdl 8192] [#]} (39. b4 $17) 39... Rd6 $2 {[%emt 0:08:35] Weighted Error Value: White=0.34/Black=0.09 (flawless)} (39... Qd2 $1 $19 {[%cal Rd2f4]} 40. Rxa6+ f6) 1/2-1/2

[Event "Saint Louis Super Swiss 2023"]
[Site "Saint Louis"]
[Date "2023.03.16"]
[Round "6.10"]
[White "Marjanovic, Annamaria"]
[Black "Dudin, Gleb"]
[Result "0-1"]
[ECO "E16"]
[WhiteElo "2264"]
[BlackElo "2469"]
[Annotator "TA"]
[PlyCount "106"]
[EventDate "2023.03.12"]
[EventType "swiss"]
[EventCountry "USA"]
[TimeControl "5400+30"]

{[%evp 14,106,10,15,7,0,2,-4,13,0,0,0,0,0,0,0,17,12,27,23,27,19,27,-32,-25,-26,-14,-34,-19,-18,-14,-25,-24,-50,-58,-68,-65,-52,-53,-54,-64,-185,-58,-341,-375,-389,-384,-383,-374,-348,-359,-310,-346,-537,-556,-568,-507,-531,-537,-505,-442,-572,-572,-547,-494,-604,-601,-593,-584,-743,-720,-928,-912,-1109,-1097,-1008,-979,-1077,-1248,-1052,-975,-1782,-1787,-1740,-1636,-1839,-1767,-29977,-29978,-29981,-29982,-29981,-29982,-29982,-29981]} 1. d4 {[%emt 0:00:03]} Nf6 {[%emt 0:04:20]} 2. c4 {[%emt 0:00:10]} e6 {[%emt 0:00:06]} 3. g3 {[%emt 0:00:06]} Bb4+ {[%emt 0:00:42]} 4. Nd2 {[%emt 0:00:10]} d5 {[%emt 0:01:19]} 5. Bg2 {[%emt 0:00:27]} O-O {[%emt 0:00:13]} 6. Ngf3 {[%emt 0:00:23]} b6 {[%emt 0:00:09]} 7. O-O {[%emt 0:02:31]} Bb7 {[%emt 0:00:07]} 8. a3 {[%emt 0:02:36]} Be7 {[%emt 0:01:21] E16: Queen's Indian: 4 g3 Bb7 5 Bg2 Bb4+.} 9. b3 {[%emt 0:02:25]} Nbd7 {[%emt 0:03:48]} 10. Bb2 {[%emt 0:00:31]} a5 {[%emt 0:00:09] The position is equal.} 11. Qc2 {[%emt 0:06:20] [#]} Rc8 $146 {[%emt 0:04:28]} ({Predecessor:} 11... c5 12. cxd5 exd5 13. Rac1 Re8 14. Rfd1 a4 15. dxc5 bxc5 16. bxa4 Bc6 17. Qf5 Bxa4 {0-1 Pavlidis,A (2337)-Stankovic,M (2412) Arandjelovac ASK-6 GM 2022 (8)}) 12. Ne5 {[%emt 0:03:32]} c5 {[%emt 0:06:25]} 13. dxc5 {[%emt 0:08:24]} Bxc5 {[%emt 0:04:37]} 14. Nxd7 {[%emt 0:03:07]} (14. Nd3 {simplifies} Bd6 15. Qd1 Re8 16. cxd5 exd5 17. Nf3) 14... Nxd7 {[%emt 0:00:25]} 15. Qb1 {[%emt 0:07:39]} Qg5 {[%emt 0:08:57]} 16. Rd1 {[%emt 0:11:56][%cal Ob3b4]} Nf6 {[%emt 0:12:32][%cal Bd7f6,Bf6e4,Be4c3][%mdl 32]} 17. Nf3 {[%emt 0:08:34]} Qh6 {[%emt 0:03:54]} 18. Bc1 {[%emt 0:07:05]} (18. b4 $11 Bxf2+ {[%mdl 64] Decoy} 19. Kxf2 Ng4+ 20. Ke1) 18... Qh5 $15 {[%emt 0:01:16] ...Ng4 would be deadly.} 19. b4 {[%emt 0:00:21] [#]} Bxf2+ {[%emt 0:04:24][%mdl 64] Decoy} 20. Kxf2 {[%emt 0:00:57]} Ne4+ $1 {[%emt 0:00:55]} 21. Kg1 {[%emt 0:01:01]} Nc3 {[%emt 0:00:11]} 22. Qd3 {[%emt 0:00:29]} Nxd1 {[%emt 0:00:23]} 23. Qxd1 {[%emt 0:00:04]} dxc4 {[%emt 0:01:01]} 24. Be3 {[%emt 0:03:23]} axb4 {[%emt 0:06:13]} 25. axb4 {[%emt 0:00:06]} b5 {[%emt 0:04:01]} 26. Ra7 {[%emt 0:02:23]} Bd5 {[%emt 0:02:57]} 27. Qa1 {[%emt 0:09:27] White is now going downhill.} ({Better is} 27. Ra5 $15) 27... Ra8 {[%emt 0:09:24]} (27... c3 $19 {Threatens to win with ...Rc4.} 28. Rd7 c2) 28. Qe5 $2 {[%emt 0:02:25][%mdl 8192]} ({White should try} 28. Ra5 $15) 28... Qxe5 $19 {[%emt 0:03:21]} 29. Nxe5 {[%emt 0:00:05]} Rxa7 {[%emt 0:00:11]} 30. Bxa7 {[%emt 0:00:06]} Ra8 {[%emt 0:02:48]} 31. Bd4 {[%emt 0:02:45]} Bxg2 {[%emt 0:01:46]} 32. Kxg2 {[%emt 0:01:32]} f6 {[%emt 0:00:07]} 33. Nf3 {[%emt 0:00:43]} (33. Nc6 {was worth a try.}) 33... e5 {[%emt 0:01:51]} 34. Bc5 {[%emt 0:02:24]} c3 {[%emt 0:06:24]} 35. Ne1 {[%emt 0:00:21]} Ra1 {[%emt 0:01:03]} 36. Kf2 {[%emt 0:01:28]} Kf7 {[%emt 0:00:33]} 37. Nc2 {[%emt 0:03:16]} Ra2 {[%emt 0:01:02]} 38. Ne1 {[%emt 0:00:07]} Ke6 {[%emt 0:00:21]} 39. Ke3 {[%emt 0:00:27]} Rd2 {[%emt 0:00:13]} 40. Bf8 {[%emt 0:02:19]} g6 {[%emt 0:02:00]} 41. h4 {[%emt 0:00:28]} f5 {[%emt 0:00:41]} 42. Bg7 {[%emt 0:01:44]} Kd5 {[%emt 0:02:34]} 43. Bf6 {[%emt 0:01:40]} Rd1 {[%emt 0:01:12]} 44. Nc2 {[%emt 0:00:21]} Kc4 {[%emt 0:00:44] ...Kb3 is the strong threat.} 45. Bxe5 {[%emt 0:00:06]} Kb3 {[%emt 0:00:12][%mdl 64] Deflection} 46. Nd4+ {[%emt 0:00:08]} Kxb4 {[%emt 0:00:08] And now ...Ka4 would win.} 47. Nc2+ {[%emt 0:01:11]} Kb3 {[%emt 0:01:18]} 48. Nd4+ {[%emt 0:00:06]} Ka4 {[%emt 0:00:39]} 49. Kf2 {[%emt 0:02:04]} b4 {[%emt 0:00:31]} 50. e3 {[%emt 0:00:14] [#]} Rxd4 $1 {[%emt 0:00:48][%mdl 512] Black mates.} 51. Bxd4 {[%emt 0:00:30]} (51. exd4 b3) 51... c2 {[%emt 0:00:25]} 52. Bb2 {[%emt 0:00:04]} Kb3 {[%emt 0:00:06]} 53. Bc1 {[%emt 0:00:03]} Kc3 {[%emt 0:00:12] Weighted Error Value: White=0.83/Black=0.05 (flawless)} 0-1

[Event "Saint Louis Super Swiss 2023"]
[Site "Saint Louis"]
[Date "2023.03.15"]
[Round "7.1"]
[White "Bruzon Batista, Lazaro"]
[Black "Yoo, Christopher Woojin"]
[Result "1/2-1/2"]
[ECO "E11"]
[WhiteElo "2610"]
[BlackElo "2591"]
[Annotator "TA"]
[PlyCount "139"]
[EventDate "2023.03.12"]
[EventType "swiss"]
[EventCountry "USA"]
[SourceTitle "playchess.com"]
[Source "ChessBase"]
[SourceQuality "1"]
[TimeControl "5400+30"]

{[%evp 12,138,9,7,40,24,38,34,48,41,41,39,46,33,52,39,54,67,63,57,59,58,64,65,86,50,43,43,44,50,105,109,81,31,34,37,29,5,6,16,33,34,45,43,46,16,20,16,16,16,16,18,16,12,15,6,6,6,21,21,9,9,9,10,12,10,20,20,20,16,34,34,35,28,28,28,29,20,36,36,36,36,36,29,34,34,36,0,0,0,0,0,0,0,0,0,0,0,0,0,0,0,0,0,0,0,0,0,0,0,0,0,0,0,0,0,0,0,0,0,0,0,0,0,0,0,0,0,0]} 1. d4 {[%emt 0:00:03]} Nf6 {[%emt 0:00:08]} 2. c4 {[%emt 0:00:11]} e6 {[%emt 0:00:06]} 3. g3 {[%emt 0:00:45]} d5 {[%emt 0:00:26]} 4. Bg2 {[%emt 0:00:35]} Bb4+ {[%emt 0:00:12]} 5. Bd2 {[%emt 0:06:10]} a5 {[%emt 0:01:12]} 6. Nf3 {[%emt 0:00:07]} O-O {[%emt 0:00:10] 6...0-0 scores better than 6...dxc4.} 7. Qc2 {[%emt 0:00:57]} c5 {[%emt 0:00:42] E11: Bogo-Indian.} 8. cxd5 {[%emt 0:00:19]} cxd4 {[%emt 0:00:17]} 9. Nxd4 {[%emt 0:00:06]} Qb6 {[%emt 0:01:39] White is slightly better.} 10. e3 {[%emt 0:00:05]} exd5 {[%emt 0:01:03]} 11. O-O {[%emt 0:00:30]} Nc6 {[%emt 0:01:32]} 12. Nxc6 {[%emt 0:02:25]} bxc6 {[%emt 0:00:13]} 13. Rc1 {[%emt 0:01:56]} Rb8 {[%emt 0:06:40]} 14. Nc3 {[%emt 0:03:48] [#]} ({Much worse is} 14. Qxc6 Qxc6 15. Rxc6 Bxd2 16. Nxd2 Rxb2 $11) 14... Qd8 $146 {[%emt 0:04:48]} ({Predecessor:} 14... h5 15. a3 Be7 16. Na4 Qc7 17. Qxc6 Qxc6 18. Rxc6 Bd7 19. Rc7 Bd8 20. Rxd7 Nxd7 {½-½ Nguyen,T (2610)-Le,Q (2709) Prague Masters 4th 2022 (4)}) 15. Ne2 {[%emt 0:08:48]} Bxd2 {[%emt 0:03:29]} 16. Qxd2 {[%emt 0:00:14]} Qb6 {[%emt 0:00:06]} 17. b3 {[%emt 0:03:04]} Bg4 {[%emt 0:01:14]} 18. Nc3 {[%emt 0:08:34]} Qb4 {[%emt 0:02:20]} 19. h3 {[%emt 0:13:56]} Be6 {[%emt 0:04:56]} 20. Rd1 {[%emt 0:04:25]} Ne4 {[%emt 0:10:51]} (20... Rfc8 $14) 21. Nxe4 $16 {[%emt 0:02:07]} dxe4 {[%emt 0:00:05]} 22. Rac1 {[%emt 0:00:14]} (22. Qc2 $16) 22... a4 $14 {[%emt 0:04:00]} 23. Qxb4 {[%emt 0:02:41]} Rxb4 {[%emt 0:00:10]} 24. Rxc6 {[%emt 0:04:14]} axb3 {[%emt 0:00:04]} 25. axb3 {[%emt 0:00:05]} Bxb3 {[%emt 0:07:10]} 26. Rb1 {[%emt 0:03:39][%cal Og2e4]} f5 {[%emt 0:00:10][%cal Ob3a4]} 27. g4 {[%emt 0:04:57]} g6 {[%emt 0:01:34]} 28. gxf5 {[%emt 0:06:05]} gxf5 {[%emt 0:02:10]} 29. Kh2 {[%emt 0:00:49]} Rbb8 {[%emt 0:06:58]} 30. h4 {[%emt 0:05:11]} Bf7 {[%emt 0:02:58]} 31. Rxb8 {[%emt 0:01:27]} Rxb8 $11 {[%emt 0:00:06][%mdl 4096] Endgame KRB-KRB} 32. Rc5 {[%emt 0:02:50]} Be6 {[%emt 0:00:45]} 33. Bh3 {[%emt 0:00:52]} Rf8 {[%emt 0:01:29]} 34. Rc6 {[%emt 0:03:04]} Bd7 {[%emt 0:00:37]} 35. Rd6 {[%emt 0:05:18]} Rf7 {[%emt 0:01:34]} 36. Bf1 {[%emt 0:00:21] [#] Hoping for Bc4.} Kf8 {[%emt 0:04:26]} 37. Kg3 {[%emt 0:01:42] Strongly threatening Kf4.} Ke7 {[%emt 0:00:11]} 38. Rh6 {[%emt 0:00:43] Kf4 is the strong threat.} f4+ $1 {[%emt 0:00:14]} 39. exf4 {[%emt 0:00:21]} Rg7+ {[%emt 0:00:10]} 40. Kh2 {[%emt 0:00:17]} Rf7 {[%emt 0:00:03]} 41. Be2 {[%emt 0:01:36]} Kf8 {[%emt 0:00:48]} 42. Bh5 {[%emt 0:02:39]} Re7 {[%emt 0:01:29]} ({Not} 42... Rxf4 43. Kg3 (43. Rxh7 Rxh4+ 44. Kg3 Rh3+ 45. Kf4 Be6 $11) 43... Rf5 44. Rxh7 $16) 43. Rd6 {[%emt 0:00:06][%cal Of4f5] [#] And now f5! would win.} Kg7 {[%emt 0:00:30] Inhibits f5.} 44. Kg3 {[%emt 0:01:06]} e3 {[%emt 0:01:08]} 45. fxe3 {[%emt 0:00:32]} Rxe3+ {[%emt 0:00:06]} 46. Kf2 {[%emt 0:00:29]} Re7 {[%emt 0:00:05]} 47. Be2 {[%emt 0:01:21]} Bf5 {[%emt 0:00:10]} 48. Rd5 {[%emt 0:00:54]} Kf6 {[%emt 0:00:19]} 49. Bd3 {[%emt 0:00:27]} Bxd3 {[%emt 0:00:28] The position is equal.} 50. Rxd3 {[%emt 0:00:01] KR-KR} Ra7 {[%emt 0:00:36]} 51. Kf3 {[%emt 0:00:13]} Ra1 {[%emt 0:00:20]} 52. Rd6+ {[%emt 0:00:21]} Kf5 {[%emt 0:00:23]} 53. Rd5+ {[%emt 0:00:09]} Kf6 {[%emt 0:00:08]} 54. Kg4 {[%emt 0:00:20]} Rg1+ {[%emt 0:00:27]} 55. Kh5 {[%emt 0:00:16]} Rf1 {[%emt 0:00:08]} 56. Kg4 {[%emt 0:00:35]} Rg1+ {[%emt 0:00:15]} 57. Kh5 {[%emt 0:01:18]} Rf1 {[%emt 0:00:20]} 58. Kh6 {[%emt 0:00:23]} Rxf4 {[%emt 0:00:18]} 59. h5 {[%emt 0:00:21]} Rg4 {[%emt 0:00:58]} 60. Kxh7 {[%emt 0:00:29]} Rg7+ {[%emt 0:00:18]} 61. Kh6 {[%emt 0:00:24]} Rg8 {[%emt 0:00:41]} 62. Rd6+ {[%emt 0:00:25]} Kf7 {[%emt 0:01:07]} 63. Rg6 {[%emt 0:00:36]} Rh8+ {[%emt 0:00:11]} 64. Kg5 {[%emt 0:00:04]} Rg8 {[%emt 0:00:03]} 65. Kf5 {[%emt 0:01:44]} Rxg6 {[%emt 0:00:08]} 66. hxg6+ {[%emt 0:00:01]} Kg7 {[%emt 0:00:06]} 67. Kg5 {[%emt 0:00:04]} Kg8 {[%emt 0:00:03]} 68. Kf6 {[%emt 0:00:07]} (68. Kf5 $5) 68... Kf8 {[%emt 0:00:03]} 69. g7+ {[%emt 0:00:06]} Kg8 {[%emt 0:00:02]} 70. Kg6 {[%emt 0:00:04] Weighted Error Value: White=0.04 (flawless) /Black=0.05 (flawless)} 1/2-1/2

[Event "Saint Louis Super Swiss 2023"]
[Site "Saint Louis"]
[Date "2023.03.17"]
[Round "7.2"]
[White "Theodorou, Nikolas"]
[Black "Jacobson, Brandon"]
[Result "1/2-1/2"]
[ECO "C88"]
[WhiteElo "2584"]
[BlackElo "2543"]
[Annotator "TA"]
[PlyCount "104"]
[EventDate "2023.03.12"]
[EventType "swiss"]
[EventCountry "USA"]
[TimeControl "5400+30"]

{[%evp 20,104,37,14,47,23,29,25,33,13,24,17,16,22,24,15,22,14,13,18,15,2,4,3,6,2,7,10,10,0,13,19,20,20,33,39,39,41,57,43,77,69,78,75,73,65,75,74,66,65,77,67,67,67,67,67,80,70,93,83,80,80,93,93,103,103,103,103,103,103,115,101,207,93,93,93,93,93,120,93,101,25,25,31,120,122,122]} 1. e4 {[%emt 0:00:03]} e5 {[%emt 0:03:56]} 2. Nf3 {[%emt 0:00:06]} Nc6 {[%emt 0:00:13]} 3. Bb5 {[%emt 0:00:05][%cal Bf1b5,Bb5a4,Ba4b3][%mdl 32]} a6 {[%emt 0:00:20]} 4. Ba4 {[%emt 0:00:05]} Nf6 {[%emt 0:00:08]} 5. O-O {[%emt 0:00:45]} Be7 {[%emt 0:00:13]} 6. Re1 {[%emt 0:03:53]} b5 {[%emt 0:00:11]} 7. Bb3 {[%emt 0:00:03]} O-O {[%emt 0:00:10]} 8. a4 {[%emt 0:03:50]} Rb8 {[%emt 0:02:16]} 9. axb5 {[%emt 0:05:43]} axb5 {[%emt 0:00:04]} 10. c3 {[%emt 0:00:12]} d6 {[%emt 0:01:51]} 11. h3 {[%emt 0:01:49]} (11. d4 $5 {[%cal Rd4d5]} Rb6 12. Bd2 $14) 11... b4 {[%emt 0:00:08] C88: Closed Ruy Lopez: Anti-Marshall Systems.} 12. d3 {[%emt 0:02:05]} bxc3 {[%emt 0:00:13]} 13. bxc3 {[%emt 0:00:15]} d5 {[%emt 0:00:41] White has an edge.} 14. Nbd2 {[%emt 0:03:07]} dxe4 {[%emt 0:00:11]} 15. dxe4 {[%emt 0:01:01]} h6 {[%emt 0:00:07]} 16. Qc2 {[%emt 0:03:27]} Bd6 {[%emt 0:00:08]} 17. Nf1 {[%emt 0:03:09]} Bd7 {[%emt 0:00:13]} 18. Ng3 {[%emt 0:03:50]} Qc8 {[%emt 0:00:12]} 19. Be3 {[%emt 0:01:31]} Be6 {[%emt 0:02:25] [#]} 20. Reb1 $146 {[%emt 0:04:20]} ({Predecessor:} 20. Bxe6 Qxe6 21. Qa4 Ne7 22. Reb1 Nd7 23. Nd2 {½-½ Bacrot,E (2648)-Fressinet,L (2624) FRA-ch 95th Albi 2022 (3.1)}) 20... Bxb3 {[%emt 0:04:02]} 21. Rxb3 {[%emt 0:00:03]} Qe6 {[%emt 0:00:10]} 22. Rxb8 {[%emt 0:00:17]} Rxb8 {[%emt 0:00:04]} 23. Nd2 {[%emt 0:07:01]} Nd7 {[%emt 0:06:57]} 24. Nf5 {[%emt 0:02:46]} Bc5 {[%emt 0:03:06]} 25. Qd3 {[%emt 0:07:06]} Bxe3 {[%emt 0:07:08]} 26. Nxe3 {[%emt 0:02:27]} Rd8 {[%emt 0:32:33]} 27. Qb5 {[%emt 0:04:14]} Nf6 {[%emt 0:05:51]} 28. Ra6 {[%emt 0:08:41][%cal Ba1a6,Ba6c6,Bc6c7][%mdl 32]} Rxd2 {[%emt 0:02:18]} 29. Rxc6 {[%emt 0:00:05]} Rd6 {[%emt 0:04:33]} 30. Rxc7 {[%emt 0:09:03]} Nxe4 {[%emt 0:01:05]} 31. Qb8+ {[%emt 0:06:05]} Kh7 {[%emt 0:00:02]} 32. Qb7 {[%emt 0:01:13][%csl LRe4,LRf7]} Ng5 {[%emt 0:07:37]} 33. h4 {[%emt 0:01:09]} Rb6 {[%emt 0:00:06]} 34. Qd5 {[%emt 0:00:39]} Rb1+ {[%emt 0:01:05]} 35. Kh2 {[%emt 0:00:02]} Qxd5 $1 {[%emt 0:02:36]} 36. Nxd5 $14 {[%emt 0:00:03][%mdl 4096] Endgame KRN-KRN} Ne4 {[%emt 0:00:05]} 37. Rxf7 {[%emt 0:00:56]} Nf6 {[%emt 0:04:23][%mdl 64] Decoy} 38. c4 {[%emt 0:06:46][%cal Bc3c4,Bc4d5,Bd5d6][%mdl 32]} Rb2 {[%emt 0:01:57]} 39. f3 {[%emt 0:03:43] Hoping for Re7. White is more active.} Nxd5 {[%emt 0:03:07]} 40. cxd5 $16 {[%emt 0:00:02] Re7 would be deadly. KR-KR} Rd2 {[%emt 0:00:06]} 41. Rd7 $1 {[%emt 0:00:06] Threatens to win with h5.} h5 {[%emt 0:01:01]} 42. d6 {[%emt 0:05:15]} Kg6 {[%emt 0:05:26]} 43. Rd8 $1 {[%emt 0:01:18]} Kf7 {[%emt 0:00:18]} 44. d7 $1 {[%emt 0:02:45]} Rd5 {[%emt 0:00:15]} 45. Kg1 {[%emt 0:01:16]} (45. Rh8 {simplifies} Rxd7 46. Rxh5 Kf6 47. Rg5) 45... Ke6 {[%emt 0:02:51] [#]} (45... Rd2 $16 {is a better defense.} 46. Kf1 g6) 46. Rh8 {[%emt 0:00:29]} (46. Re8+ $1 $18 {is the precise move to win.} Kxd7 47. Rg8) 46... Rxd7 {[%emt 0:00:14]} 47. Rxh5 {[%emt 0:00:06]} Rd4 {[%emt 0:00:34]} 48. Kf2 {[%emt 0:00:50]} Kf6 {[%emt 0:00:13]} 49. Ke3 {[%emt 0:00:31]} Ra4 {[%emt 0:00:21]} 50. g4 {[%emt 0:00:31]} (50. Rh8 $16) 50... Ra3+ $11 {[%emt 0:00:24]} 51. Kf2 {[%emt 0:00:02] aiming for Rf5+.} ({Don't take} 51. Ke4 $6 Ra4+ 52. Ke3 Ra3+ 53. Kf2 (53. Ke4 Ra4+ 54. Ke3 $16) 53... Ra2+ 54. Kg3 Ra3 $16) 51... Ra2+ {[%emt 0:00:10] [#]} (51... g6 $14 52. Rh7 e4) 52. Kg3 $1 $16 {[%emt 0:00:02]} Ra3 {[%emt 0:00:51] Weighted Error Value: White=0.10 (very precise) /Black=0.13 (very precise)} 1/2-1/2

[Event "Saint Louis Super Swiss 2023"]
[Site "Saint Louis"]
[Date "2023.03.16"]
[Round "7.3"]
[White "Swiercz, Dariusz"]
[Black "Quesada Perez, Yasser"]
[Result "1/2-1/2"]
[ECO "B40"]
[WhiteElo "2646"]
[BlackElo "2604"]
[Annotator "TA"]
[PlyCount "75"]
[EventDate "2023.03.12"]
[EventType "swiss"]
[EventCountry "USA"]
[TimeControl "5400+30"]

{[%evp 9,75,-2,16,17,22,21,31,31,24,5,36,23,32,35,31,27,35,37,36,37,36,29,28,5,39,39,44,35,62,59,66,64,76,77,79,75,75,74,77,66,87,87,91,91,113,124,200,190,237,214,203,205,183,87,88,61,59,56,89,0,0,0,60,0,0,0,47,0]} 1. e4 {[%emt 0:04:22]} c5 {[%emt 0:00:06]} 2. Nf3 {[%emt 0:00:05]} e6 {[%emt 0:00:03]} 3. c3 {[%emt 0:00:16]} d5 {[%emt 0:03:18]} 4. e5 {[%emt 0:00:09]} d4 {[%emt 0:00:05]} 5. d3 {[%emt 0:00:03]} Bd7 {[%emt 0:02:55]} 6. g3 {[%emt 0:00:47] B40: Sicilian: 2...e6, Unusual lines.} Bc6 {[%emt 0:00:20]} 7. Bg2 {[%emt 0:00:05]} Nd7 {[%emt 0:01:18]} 8. O-O {[%emt 0:01:12]} Ne7 {[%emt 0:01:18]} 9. Re1 {[%emt 0:04:09]} Nf5 {[%emt 0:02:03] [#]} 10. Nbd2 $146 {[%emt 0:05:46]} ({Predecessor:} 10. Bf4 Be7 11. h4 dxc3 12. Nxc3 Nb6 13. Ne4 O-O 14. Rc1 c4 15. g4 Nh6 16. Bxh6 gxh6 17. dxc4 Qxd1 18. Rcxd1 Nxc4 {0-1 Maze,S (2574)-Dubov,D (2712) Wch Rapid Almaty 2022 (4)}) 10... dxc3 {[%emt 0:13:07]} 11. bxc3 {[%emt 0:00:09]} Be7 {[%emt 0:00:22]} 12. g4 {[%emt 0:12:12]} Nh4 {[%emt 0:00:57]} 13. Nxh4 {[%emt 0:00:07]} Bxh4 {[%emt 0:00:04]} 14. Bxc6 {[%emt 0:00:04]} bxc6 {[%emt 0:00:05]} 15. Nf3 {[%emt 0:00:36] [#] Strongly threatening g5.} Be7 {[%emt 0:00:48]} 16. c4 {[%emt 0:12:30]} O-O {[%emt 0:01:11]} (16... h5 $5 {[%cal Rh5g4]} 17. g5 Qa5 $14) 17. g5 {[%emt 0:02:20]} Rb8 {[%emt 0:13:30]} 18. Qe2 {[%emt 0:02:19]} Nb6 {[%emt 0:06:21]} 19. h4 {[%emt 0:01:42][%cal Bh2h4,Bh4h5][%mdl 32]} Qd7 {[%emt 0:00:42]} 20. Rb1 {[%emt 0:07:38]} Rfd8 {[%emt 0:11:07]} 21. Rb3 {[%emt 0:01:00]} Rb7 {[%emt 0:05:25]} 22. Be3 {[%emt 0:05:47]} Nc8 {[%emt 0:02:55]} 23. Reb1 {[%emt 0:04:13][%cal Be1b1,Bb1b3,Bb3b7][%mdl 32]} Rb4 {[%emt 0:01:15]} 24. h5 {[%emt 0:19:14]} a5 {[%emt 0:04:01]} 25. a3 {[%emt 0:02:35]} Rxb3 {[%emt 0:00:40]} 26. Rxb3 {[%emt 0:00:03]} Bf8 {[%emt 0:02:43]} 27. a4 {[%emt 0:01:14]} Kh8 {[%emt 0:06:47]} (27... Ne7 $16) 28. Qb2 $18 {[%emt 0:02:16]} h6 {[%emt 0:01:29]} (28... Ne7 $142 29. Bxc5 Kg8) 29. Qb1 {[%emt 0:01:23]} Ne7 {[%emt 0:02:22] [#]} 30. Rb7 $1 {[%emt 0:01:29]} ({Don't take} 30. Bxc5 $6 Nf5 31. d4 Bxc5 $16) 30... Qe8 {[%emt 0:00:05]} (30... Qxd3 $2 31. Qxd3 (31. Bxc5 $2 {too greedy.} Qxf3 32. Bxe7 Rd1+ $19) 31... Rxd3 32. Rb8 $18 (32. Bxc5 Rxf3 33. Rb8 Kh7 $11)) 31. gxh6 {[%emt 0:01:59]} (31. Bxc5 $18 {has better winning chances. And now Qb6 would win.} Nf5 32. Bxf8 Qxf8 33. Qb6) 31... gxh6 $16 {[%emt 0:00:01]} 32. Kf1 {[%emt 0:05:55] White has more active pieces.} Nf5 {[%emt 0:00:06] Inhibits Nh4.} 33. Ke2 {[%emt 0:00:04]} (33. Bd2 $5 {[%cal Rd2a5]}) 33... Be7 {[%emt 0:01:04]} 34. Qg1 {[%emt 0:02:59]} (34. Qb6 $16) 34... Rb8 $11 {[%emt 0:00:40]} 35. Qb1 {[%emt 0:00:01]} Rc8 {[%emt 0:02:48]} (35... Rd8 $11) 36. Qg1 {[%emt 0:00:23]} (36. Bd2 $14) 36... Rb8 {[%emt 0:00:03]} 37. Qb1 {[%emt 0:00:03]} (37. Rxb8 $11 {might be stronger.} Qxb8 38. Qe1) 37... Rc8 $14 {[%emt 0:00:03]} 38. Qg1 {[%emt 0:01:44] Black defended with fortune.   Weighted Error Value: White=0.12 (very precise) /Black=0.13 (very precise)} (38. Qc1 $14 {deserves consideration.}) 1/2-1/2